fUST/lending_fUST_20260114
["ID","MTS","AMOUNT","RATE_DAILY","PERIOD"]
[401796951,1768378240796,-1543.46054072,0.00012329,2]
[401796953,1768378240805,-1543.46054072,0.00012329,2]
[401796955,1768378240814,-1543.46054072,0.00012329,2]
[401796957,1768378240824,-1543.46054072,0.00012329,2]
[401796959,1768378240833,-1543.46054072,0.00012329,2]
[401796961,1768378240842,-1543.46054072,0.00012329,2]
[401796963,1768378240851,-1543.46054072,0.00012329,2]
[401796965,1768378240860,-1543.46054072,0.00012329,2]
[401796966,1768378240870,-1543.46054072,0.00012329,2]
[401796967,1768378240879,-1543.46054072,0.00012329,2]
[401796968,1768378240889,-1543.46054071,0.00012329,2]
[401796969,1768378240899,-1543.46054071,0.00012329,2]
[401796970,1768378240908,-1543.46054071,0.00012329,2]
[401796971,1768378240917,-1543.46054071,0.00012329,2]
[401796972,1768378240927,-864.0,0.00012422,2]
[401796973,1768378240937,-199.94013067,0.00012446,2]
[401796974,1768378240946,-2017.55934077,0.00012448,2]
[401796975,1768378240955,-500.0,0.00012533,2]
[401796976,1768378240964,-500.0,0.00012543,2]
[401796977,1768378240973,-500.0,0.00012543,2]
[401796978,1768378240983,-500.0,0.00012543,2]
[401796979,1768378240995,-500.0,0.00012543,2]
[401796980,1768378241004,-311.85701,0.00012543,2]
[401796981,1768378241014,-500.0,0.00012543,2]
[401796982,1768378241024,-500.0,0.00012543,2]
[401796983,1768378241034,-1957.856,0.00012543,2]
[401796984,1768378241043,-500.0,0.00012543,2]
[401796985,1768378241052,-500.0,0.00012543,2]
[401796986,1768378241064,-500.0,0.00012543,2]
[401796987,1768378241073,-500.0,0.00012543,2]
[401796988,1768378241082,-500.0,0.00012543,2]
[401796989,1768378241091,-500.0,0.00012543,2]
[401796990,1768378241100,-168.3888056,0.00012543,2]
[401796991,1768378241109,-500.0,0.00012543,2]
[401796992,1768378241118,-174.61919141,0.00012543,2]
[401796993,1768378241127,-500.0,0.00012543,2]
[401796994,1768378241136,-181.08010149,0.00012543,2]
[401796995,1768378241146,-500.0,0.00012543,2]
[401796996,1768378241155,-187.78006525,0.00012543,2]
[401796997,1768378241164,-194.72792766,0.00012543,2]
[401796999,1768378241173,-500.0,0.00012543,2]
[401797001,1768378241183,-201.93286099,0.00012543,2]
[401797003,1768378241192,-500.0,0.00012543,2]
[401797004,1768378241201,-209.40437684,0.00012543,2]
[401797006,1768378241210,-217.15233878,0.00012543,2]
[401797008,1768378241219,-2230.315306,0.00012543,2]
[401797010,1768378241228,-250.0,0.00012543,2]
[401797012,1768378241238,-225.18697532,0.00012543,2]
[401797014,1768378241247,-233.51889341,0.00012543,2]
[401797016,1768378241256,-242.15909246,0.00012543,2]
[401797018,1768378241265,-251.11897888,0.00012543,2]
[401797020,1768378241275,-260.4103811,0.00012543,2]
[401797021,1768378241284,-270.0455652,0.00012543,2]
[401797023,1768378241293,-280.03725112,0.00012543,2]
[401797025,1768378241303,-290.39862941,0.00012543,2]
[401797027,1768378241312,-30000.0,0.00012543,2]
[401797028,1768378241321,-301.1433787,0.00012543,2]
[401797029,1768378241330,-461.67526834,0.00012543,2]
[401797030,1768378241340,-2030.296672,0.00012598,2]
[401797031,1768378241349,-2105.41764886,0.00012653,2]
[401797032,1768378241359,-1665.51,0.000127,2]
[401797033,1768378241370,-2183.31810187,0.00012708,2]
[401797034,1768378241380,-2264.10087164,0.00012763,2]
[401797035,1768378241389,-500.0,0.00012807,2]
[401797036,1768378241398,-2347.87260389,0.00012818,2]
[401797037,1768378241408,-202.526,0.00012861,2]
[401797038,1768378241417,-200.858,0.00012861,2]
[401797039,1768378241426,-221.878,0.00012861,2]
[401797040,1768378241436,-2434.74389024,0.00012873,2]
[401797041,1768378241445,-728.0,0.00012893,2]
[401797042,1768378241454,-728.0,0.00012893,2]
[401797043,1768378241463,-18780.42235649,0.000129,2]
[401797044,1768378241472,-2324.56018556,0.00012928,2]
[401797045,1768378241482,-500.0,0.00012999,2]
[401797046,1768378241491,-291.14675922,0.00012999,2]
[401797047,1768378241501,-870.0,0.00012999,2]
[401797048,1768378241511,-500.0,0.00012999,2]
[401797049,1768378241521,-500.0,0.00012999,2]
[401797050,1768378241530,-500.0,0.00012999,2]
[401797051,1768378241540,-500.0,0.00012999,2]
[401797052,1768378241549,-431.0,0.00012999,2]
[401797053,1768378241558,-500.0,0.00012999,2]
[401797054,1768378241568,-500.0,0.00012999,2]
[401797055,1768378241578,-500.0,0.00012999,2]
[401797056,1768378241587,-500.0,0.00012999,2]
[401797057,1768378241598,-500.0,0.00012999,2]
[401797058,1768378241607,-500.0,0.00012999,2]
[401797059,1768378241616,-500.0,0.00012999,2]
[401797060,1768378241626,-500.0,0.00012999,2]
[401797061,1768378241635,-500.0,0.00012999,2]
[401797062,1768378241644,-500.0,0.00012999,2]
[401797063,1768378241654,-430.0,0.00013029,2]
[401797064,1768378241664,-417.0,0.00013029,2]
[401797065,1768378241673,-772.303,0.00013029,2]
[401797066,1768378241682,-197.967,0.00013029,2]
[401797067,1768378241692,-500.0,0.00013081,2]
[401797068,1768378241701,-2312.83697232,0.00013091,2]
[401797069,1768378241710,-31110.0,0.00013091,2]
[401797070,1768378241719,-478.75725327,0.00013091,2]
[401797071,1768378241728,-500.0,0.00013136,2]
[401797072,1768378241738,-870.0,0.00013136,2]
[401797073,1768378241747,-500.0,0.00013136,2]
[401797074,1768378241756,-500.0,0.00013136,2]
[401797075,1768378241766,-500.0,0.00013136,2]
[401797076,1768378241775,-500.0,0.00013136,2]
[401797077,1768378241786,-431.0,0.00013136,2]
[401797078,1768378241795,-500.0,0.00013136,2]
[401797079,1768378241805,-500.0,0.00013136,2]
[401797080,1768378241814,-500.0,0.00013136,2]
[401797081,1768378241823,-500.0,0.00013136,2]
[401797082,1768378241832,-500.0,0.00013136,2]
[401797083,1768378241842,-500.0,0.00013136,2]
[401797084,1768378241851,-500.0,0.00013136,2]
[401797085,1768378241860,-500.0,0.00013136,2]
[401797086,1768378241870,-500.0,0.00013136,2]
[401797087,1768378241879,-500.0,0.00013136,2]
[401797088,1768378241888,-283.83301289,0.00013136,2]
[401797089,1768378241897,-18780.42235644,0.00013169,2]
[401797090,1768378241907,-1665.51,0.000132,2]
[401797091,1768378241916,-232.431,0.00013229,2]
[401797092,1768378241925,-244.039,0.00013229,2]
[401797093,1768378241935,-250.0,0.00013229,2]
[401797094,1768378241944,-261.564,0.00013229,2]
[401797095,1768378241954,-267.537,0.00013229,2]
[401797096,1768378241963,-823.0,0.00013262,2]
[401797097,1768378241972,-823.0,0.00013262,2]
[401797098,1768378241981,-3292.0,0.00013262,2]
[401797099,1768378241992,-500.0,0.00013273,2]
[401797100,1768378242003,-154.57698528,0.00013273,2]
[401797101,1768378242012,-500.0,0.00013273,2]
[401797102,1768378242024,-500.21355158,0.00013273,2]
[401797103,1768378242035,-500.0,0.00013273,2]
[401797104,1768378242044,-500.0,0.00013273,2]
[401797105,1768378242055,-500.0,0.00013273,2]
[401797106,1768378242064,-167.63409657,0.00013273,2]
[401797107,1768378242073,-500.0,0.00013273,2]
[401797108,1768378242082,-162.00337471,0.00013273,2]
[401797109,1768378242091,-500.49098579,0.00013273,2]
[401797110,1768378242100,-500.18250774,0.00013273,2]
[401797111,1768378242109,-500.0,0.00013273,2]
[401797112,1768378242118,-500.0,0.00013273,2]
[401797113,1768378242127,-500.0,0.00013273,2]
[401797114,1768378242136,-500.0,0.00013273,2]
[401797115,1768378242145,-547.00656757,0.00013273,2]
[401797116,1768378242155,-500.0,0.00013273,2]
[401797117,1768378242164,-500.0,0.00013273,2]
[401797118,1768378242173,-500.0,0.00013273,2]
[401797119,1768378242182,-500.0,0.00013273,2]
[401797120,1768378242191,-500.0,0.00013273,2]
[401797121,1768378242200,-500.0,0.00013273,2]
[401797122,1768378242210,-500.0,0.00013273,2]
[401797123,1768378242219,-500.0,0.00013273,2]
[401797124,1768378242228,-500.0,0.00013273,2]
[401797125,1768378242237,-500.0,0.00013273,2]
[401797126,1768378242247,-500.20354178,0.00013273,2]
[401797127,1768378242256,-500.0,0.00013273,2]
[401797128,1768378242265,-500.0,0.00013273,2]
[401797129,1768378242275,-520.1094365,0.00013273,2]
[401797130,1768378242285,-500.0,0.00013273,2]
[401797131,1768378242294,-500.0,0.00013273,2]
[401797132,1768378242303,-500.0,0.00013273,2]
[401797133,1768378242312,-500.28056306,0.00013273,2]
[401797134,1768378242322,-195.77760179,0.00013273,2]
[401797135,1768378242331,-500.25674362,0.00013273,2]
[401797136,1768378242341,-500.0,0.00013273,2]
[401797137,1768378242350,-501.03457385,0.00013273,2]
[401797138,1768378242359,-185.624668,0.00013273,2]
[401797139,1768378242368,-500.0,0.00013273,2]
[401797140,1768378242377,-500.0,0.00013273,2]
[401797141,1768378242386,-500.0,0.00013273,2]
[401797142,1768378242396,-500.0,0.00013273,2]
[401797143,1768378242405,-500.0,0.00013273,2]
[401797144,1768378242414,-500.0,0.00013273,2]
[401797145,1768378242423,-500.0,0.00013273,2]
[401797146,1768378242432,-500.0,0.00013273,2]
[401797147,1768378242441,-500.0,0.00013273,2]
[401797148,1768378242450,-500.0,0.00013273,2]
[401797149,1768378242460,-500.0,0.00013273,2]
[401797150,1768378242469,-500.0,0.00013273,2]
[401797151,1768378242478,-261.59054001,0.00013273,2]
[401797152,1768378242488,-500.0,0.00013273,2]
[401797153,1768378242498,-500.0,0.00013273,2]
[401797154,1768378242507,-500.0,0.00013273,2]
[401797155,1768378242516,-500.0,0.00013273,2]
[401797156,1768378242525,-870.0,0.00013273,2]
[401797157,1768378242534,-580.25340699,0.00013273,2]
[401797158,1768378242544,-500.0,0.00013273,2]
[401797159,1768378242553,-500.88218581,0.00013273,2]
[401797160,1768378242562,-500.0,0.00013273,2]
[401797161,1768378242571,-431.0,0.00013273,2]
[401797162,1768378242581,-500.0,0.00013273,2]
[401797163,1768378242590,-500.0,0.00013273,2]
[401797164,1768378242598,-500.0,0.00013273,2]
[401797165,1768378242607,-500.0,0.00013273,2]
[401797166,1768378242616,-500.0,0.00013273,2]
[401797167,1768378242626,-500.0,0.00013273,2]
[401797168,1768378242635,-500.0,0.00013273,2]
[401797169,1768378242644,-500.0,0.00013273,2]
[401797170,1768378242654,-500.0,0.00013273,2]
[401797171,1768378242663,-240.44633049,0.00013273,2]
[401797172,1768378242672,-250.0,0.00013299,2]
[401797173,1768378242681,-500.0,0.00013355,2]
[401797174,1768378242692,-500.0,0.0001341,2]
[401797175,1768378242702,-870.0,0.0001341,2]
[401797176,1768378242711,-500.0,0.0001341,2]
[401797177,1768378242721,-431.0,0.0001341,2]
[401797178,1768378242731,-366.99002628,0.0001341,2]
[401797179,1768378242742,-500.0,0.0001341,2]
[401797180,1768378242753,-450.0,0.0001341,2]
[401797181,1768378242764,-500.0,0.0001341,2]
[401797182,1768378242776,-500.0,0.0001341,2]
[401797183,1768378242787,-407.49285757,0.0001341,2]
[401797185,1768378242797,-500.0,0.0001341,2]
[401797186,1768378242807,-500.0,0.0001341,2]
[401797187,1768378242817,-728.0,0.00013429,2]
[401797188,1768378242827,-728.0,0.00013435,2]
[401797189,1768378242837,-500.0,0.00013547,2]
[401797190,1768378242847,-870.0,0.00013547,2]
[401797191,1768378242858,-500.0,0.00013547,2]
[401797192,1768378242867,-431.0,0.00013547,2]
[401797193,1768378242876,-450.0,0.00013547,2]
[401797194,1768378242885,-233.98664865,0.00013547,2]
[401797195,1768378242894,-500.0,0.00013547,2]
[401797196,1768378242904,-500.0,0.00013547,2]
[401797197,1768378242913,-300.0,0.00013547,2]
[401797198,1768378242922,-500.0,0.00013628,2]
[401797199,1768378242932,-2398.4119403,0.00013639,2]
[401797201,1768378242940,-32261.07,0.00013639,2]
[401797203,1768378242949,-496.47127164,0.00013639,2]
[401797205,1768378242958,-728.0,0.0001365,2]
[401797207,1768378242968,-1000.0,0.00013664,2]
[401797209,1768378242978,-300.0,0.00013673,2]
[401797211,1768378242989,-500.0,0.00013684,2]
[401797213,1768378243002,-200.0,0.00013684,2]
[401797215,1768378243012,-250.0,0.00013684,2]
[401797217,1768378243025,-870.0,0.00013684,2]
[401797218,1768378243036,-151.23570132,0.00013684,2]
[401797231,1768378243151,-500.0,0.00013684,2]
[401797232,1768378243162,-431.0,0.00013684,2]
[401797233,1768378243172,-500.0,0.00013684,2]
[401797235,1768378243182,-622.17092249,0.00013684,2]
[401797237,1768378243191,-287.27602471,0.00013698,2]
[401797239,1768378243201,-500.0,0.00013698,2]
[401797240,1768378243210,-518.87817295,0.00013698,2]
[401797241,1768378243220,-500.0,0.00013698,2]
[401797242,1768378243229,-500.0,0.00013698,2]
[401797243,1768378243238,-500.0,0.00013698,2]
[401797244,1768378243247,-504.29229129,0.00013698,2]
[401797245,1768378243256,-500.0,0.00013698,2]
[401797246,1768378243264,-500.0,0.00013698,2]
[401797247,1768378243274,-800.23,0.00013698,2]
[401797248,1768378243283,-500.0,0.00013698,2]
[401797249,1768378243292,-500.0,0.00013698,2]
[401797250,1768378243301,-500.0,0.00013698,2]
[401797251,1768378243310,-589.28,0.00013698,2]
[401797252,1768378243320,-500.0,0.00013698,2]
[401797253,1768378243329,-500.0,0.00013699,2]
[401797254,1768378243338,-500.0,0.00013699,2]
[401797255,1768378243347,-1798.538388,0.00013699,2]
[401797257,1768378243356,-500.0,0.00013699,2]
[401797259,1768378243365,-500.35014826,0.00013699,2]
[401797261,1768378243375,-500.0,0.00013699,2]
[401797263,1768378243385,-501.43010395,0.00013699,2]
[401797265,1768378243394,-500.0,0.00013699,2]
[401797267,1768378243403,-500.0,0.00013699,2]
[401797269,1768378243413,-500.0,0.00013699,2]
[401797271,1768378243423,-500.0,0.00013699,2]
[401797273,1768378243432,-500.0,0.00013699,2]
[401797275,1768378243440,-413.79090585,0.00013699,2]
[401797277,1768378243449,-500.0,0.00013699,2]
[401797279,1768378243459,-500.32486546,0.00013699,2]
[401797281,1768378243468,-301.86126485,0.00013699,2]
[401797283,1768378243478,-500.0,0.00013699,2]
[401797285,1768378243487,-252.90578758,0.00013699,2]
[401797286,1768378243496,-500.0,0.00013699,2]
[401797288,1768378243506,-489.04509742,0.00013699,2]
[401797290,1768378243515,-500.0,0.00013699,2]
[401797292,1768378243525,-500.0,0.00013699,2]
[401797294,1768378243534,-500.0,0.00013699,2]
[401797297,1768378243545,-500.0,0.00013699,2]
[401797298,1768378243554,-500.0,0.00013699,2]
[401797300,1768378243563,-500.0,0.00013699,2]
[401797302,1768378243573,-500.0,0.00013699,2]
[401797304,1768378243582,-500.0,0.00013699,2]
[401797306,1768378243591,-504.50322617,0.00013699,2]
[401797308,1768378243600,-500.30572678,0.00013699,2]
[401797310,1768378243609,-501.82501982,0.00013699,2]
[401797312,1768378243619,-500.0,0.00013699,2]
[401797314,1768378243628,-500.0,0.00013699,2]
[401797316,1768378243638,-500.0,0.00013699,2]
[401797318,1768378243647,-193.02895498,0.00013699,2]
[401797320,1768378243656,-500.0,0.00013699,2]
[401797322,1768378243666,-500.0,0.00013699,2]
[401797324,1768378243675,-500.0,0.00013699,2]
[401797325,1768378243684,-500.28466628,0.00013699,2]
[401797326,1768378243694,-500.0,0.00013699,2]
[401797327,1768378243703,-500.0,0.00013699,2]
[401797328,1768378243711,-500.70727162,0.00013699,2]
[401797329,1768378243721,-500.0,0.00013699,2]
[401797330,1768378243729,-500.0,0.00013699,2]
[401797331,1768378243738,-500.0,0.00013699,2]
[401797332,1768378243747,-500.0,0.00013699,2]
[401797333,1768378243756,-500.0,0.00013699,2]
[401797334,1768378243764,-500.0,0.00013699,2]
[401797335,1768378243773,-500.0,0.00013699,2]
[401797336,1768378243782,-500.0,0.00013699,2]
[401797337,1768378243792,-500.0,0.00013699,2]
[401797338,1768378243800,-500.0,0.00013699,2]
[401797339,1768378243809,-519.22942888,0.00013699,2]
[401797340,1768378243818,-500.0,0.00013699,2]
[401797341,1768378243826,-500.0,0.00013699,2]
[401797342,1768378243835,-500.0,0.00013699,2]
[401797343,1768378243844,-500.0,0.00013699,2]
[401797344,1768378243853,-2000.0,0.00013699,7]
[401797345,1768378243862,-500.63930151,0.00013699,2]
[401797346,1768378243871,-443.99780341,0.00013699,2]
[401797347,1768378243880,-500.0,0.00013699,2]
[401797348,1768378243889,-500.0,0.00013699,2]
[401797349,1768378243898,-370.88979349,0.00013699,2]
[401797350,1768378243907,-1665.51,0.000137,2]
[401797351,1768378243916,-10000.0,0.00013735,2]
[401797352,1768378243925,-10000.0,0.00013735,2]
[401797353,1768378243933,-4343.48,0.00013735,2]
[401797354,1768378243942,-10000.0,0.00013763,2]
[401797356,1768378243951,-1306.48,0.00013763,2]
[401797358,1768378243960,-1002.68632401,0.00013821,2]
[401797360,1768378243969,-1000.0,0.00013821,2]
[401797361,1768378243978,-1002.88869488,0.00013821,2]
[401797364,1768378243990,-440.24648614,0.00013821,2]
[401797366,1768378244004,-1000.0,0.00013821,2]
[401797368,1768378244014,-1015.29551893,0.00013821,2]
[401797370,1768378244023,-169.06993919,0.00013821,2]
[401797372,1768378244032,-1000.0,0.00013821,2]
[401797374,1768378244042,-1000.0,0.00013821,2]
[401797376,1768378244051,-1000.0,0.00013821,2]
[401797378,1768378244060,-1000.0,0.00013821,2]
[401797380,1768378244070,-1000.0,0.00013821,2]
[401797382,1768378244080,-1000.0,0.00013821,2]
[401797384,1768378244089,-1000.0,0.00013821,2]
[401797386,1768378244098,-1000.0,0.00013821,2]
[401797388,1768378244107,-1000.0,0.00013821,2]
[401797390,1768378244116,-1000.0,0.00013821,2]
[401797392,1768378244125,-1000.0,0.00013821,2]
[401797394,1768378244134,-1000.0,0.00013821,2]
[401797396,1768378244143,-424.36340331,0.00013821,2]
[401797398,1768378244153,-1000.0,0.00013821,2]
[401797400,1768378244161,-1000.0,0.00013821,2]
[401797402,1768378244170,-1000.0,0.00013821,2]
[401797404,1768378244180,-1000.0,0.00013821,2]
[401797406,1768378244189,-1000.0,0.00013821,2]
[401797408,1768378244198,-1000.0,0.00013821,2]
[401797410,1768378244207,-1002.99360219,0.00013821,2]
[401797412,1768378244217,-771.86141758,0.00013821,2]
[401797414,1768378244225,-1000.0,0.00013821,2]
[401797416,1768378244235,-386.78841051,0.00013821,2]
[401797418,1768378244246,-1000.0,0.00013821,2]
[401797420,1768378244255,-502.07442824,0.00013821,2]
[401797422,1768378244266,-446.5684735,0.00013821,2]
[401797424,1768378244276,-604.03491902,0.00013821,2]
[401797426,1768378244285,-1000.0,0.00013821,2]
[401797428,1768378244295,-1000.0,0.00013821,2]
[401797430,1768378244304,-344.64451203,0.00013821,2]
[401797432,1768378244315,-1003.01901965,0.00013821,2]
[401797434,1768378244324,-1000.0,0.00013821,2]
[401797436,1768378244333,-1000.0,0.00013821,2]
[401797438,1768378244343,-500.0,0.00013821,2]
[401797441,1768378244352,-870.0,0.00013821,2]
[401797443,1768378244362,-428.44929732,0.00013821,2]
[401797445,1768378244371,-431.0,0.00013821,2]
[401797447,1768378244380,-500.0,0.00013821,2]
[401797449,1768378244390,-500.0,0.00013902,2]
[401797451,1768378244399,-410.85131619,0.00013958,2]
[401797453,1768378244408,-870.0,0.00013958,2]
[401797455,1768378244417,-431.0,0.00013958,2]
[401797457,1768378244427,-150.15988072,0.00013973,2]
[401797459,1768378244437,-912.61881997,0.00014032,2]
[401797461,1768378244446,-870.0,0.00014095,2]
[401797463,1768378244456,-431.0,0.00014095,2]
[401797465,1768378244465,-500.0,0.00014176,2]
[401797467,1768378244474,-2487.15318209,0.00014187,2]
[401797469,1768378244483,-11901.28360109,0.00014187,2]
[401797471,1768378244493,-514.84070869,0.00014187,2]
[401797473,1768378244502,-1665.51,0.000142,2]
[401797475,1768378244512,-600.0,0.00014221,2]
[401797477,1768378244521,-870.0,0.00014232,2]
[401797479,1768378244530,-431.0,0.00014232,2]
[401797481,1768378244540,-1000.0,0.00014247,2]
[401797483,1768378244549,-1000.0,0.00014247,2]
[401797485,1768378244559,-1000.0,0.00014247,2]
[401797487,1768378244568,-419.62973898,0.00014247,2]
[401797489,1768378244578,-1000.0,0.00014247,2]
[401797491,1768378244587,-1000.0,0.00014247,2]
[401797493,1768378244596,-503.83285644,0.00014247,2]
[401797495,1768378244605,-501.04290038,0.00014247,2]
[401797497,1768378244614,-250.0,0.00014247,2]
[401797499,1768378244623,-1000.0,0.00014247,2]
[401797501,1768378244633,-1000.0,0.00014247,2]
[401797503,1768378244642,-841.41978725,0.00014247,2]
[401797505,1768378244651,-1000.0,0.00014247,2]
[401797507,1768378244660,-500.30863166,0.00014247,2]
[401797509,1768378244673,-500.64657654,0.00014247,2]
[401797511,1768378244684,-1000.0,0.00014247,2]
[401797513,1768378244693,-1000.0,0.00014247,2]
[401797516,1768378244703,-1000.0,0.00014247,2]
[401797518,1768378244713,-500.65482097,0.00014247,2]
[401797520,1768378244722,-1000.0,0.00014247,2]
[401797522,1768378244731,-503.87539742,0.00014247,2]
[401797524,1768378244741,-1000.0,0.00014247,2]
[401797526,1768378244750,-1000.0,0.00014247,2]
[401797528,1768378244759,-1000.0,0.00014247,2]
[401797530,1768378244769,-1000.0,0.00014247,2]
[401797532,1768378244778,-1000.0,0.00014247,2]
[401797534,1768378244787,-1000.0,0.00014247,2]
[401797536,1768378244796,-1000.0,0.00014247,2]
[401797538,1768378244804,-1000.0,0.00014247,2]
[401797540,1768378244813,-1000.0,0.00014247,2]
[401797542,1768378244822,-1000.0,0.00014247,2]
[401797544,1768378244831,-504.58578591,0.00014247,2]
[401797546,1768378244840,-587.16663197,0.00014247,2]
[401797548,1768378244848,-1021.70348589,0.00014247,2]
[401797550,1768378244857,-1000.0,0.00014247,2]
[401797552,1768378244866,-1000.0,0.00014247,2]
[401797554,1768378244875,-1001.20972535,0.00014247,2]
[401797556,1768378244885,-1000.0,0.00014247,2]
[401797558,1768378244896,-1000.0,0.00014247,2]
[401797560,1768378244904,-1000.0,0.00014247,2]
[401797562,1768378244914,-1000.0,0.00014247,2]
[401797564,1768378244923,-490.1818171,0.00014247,2]
[401797566,1768378244931,-1000.0,0.00014247,2]
[401797568,1768378244940,-713.0,0.00014247,2]
[401797570,1768378244949,-822.79494335,0.00014368,2]
[401797572,1768378244958,-1123.81068567,0.00014368,2]
[401797574,1768378244967,-1500.0,0.00014368,2]
[401797576,1768378244976,-1500.0,0.00014368,2]
[401797578,1768378244987,-556.99110983,0.00014368,2]
[401797580,1768378245000,-1500.0,0.00014368,2]
[401797582,1768378245010,-453.04414217,0.00014368,2]
[401797584,1768378245019,-1500.0,0.00014368,2]
[401797586,1768378245028,-153.79187063,0.00014368,2]
[401797588,1768378245039,-503.99870158,0.00014368,2]
[401797590,1768378245048,-1500.0,0.00014368,2]
[401797592,1768378245057,-1500.0,0.00014368,2]
[401797594,1768378245067,-1500.0,0.00014368,2]
[401797596,1768378245077,-1500.0,0.00014368,2]
[401797598,1768378245087,-1500.0,0.00014368,2]
[401797600,1768378245096,-1500.0,0.00014368,2]
[401797602,1768378245105,-1500.0,0.00014368,2]
[401797604,1768378245114,-1500.0,0.00014368,2]
[401797606,1768378245123,-1500.0,0.00014368,2]
[401797608,1768378245132,-408.27996144,0.00014368,2]
[401797610,1768378245141,-1355.28517105,0.00014368,2]
[401797612,1768378245150,-1500.0,0.00014368,2]
[401797614,1768378245159,-158.07183809,0.00014368,2]
[401797616,1768378245168,-738.47106789,0.00014368,2]
[401797619,1768378245177,-1500.0,0.00014368,2]
[401797621,1768378245187,-1500.0,0.00014368,2]
[401797624,1768378245197,-870.0,0.00014369,2]
[401797626,1768378245206,-431.0,0.00014369,2]
[401797628,1768378245215,-728.0,0.00014427,2]
[401797630,1768378245224,-500.0,0.0001445,2]
[401797633,1768378245234,-870.0,0.00014506,2]
[401797636,1768378245243,-431.0,0.00014506,2]
[401797638,1768378245253,-16148.150858,0.00014506,7]
[401797640,1768378245262,-5000.0,0.0001451,2]
[401797642,1768378245270,-24222.226287,0.0001451,7]
[401797643,1768378245280,-160.0,0.00014567,2]
[401797645,1768378245288,-1152.0,0.00014588,2]
[401797647,1768378245298,-1152.0,0.00014588,2]
[401797650,1768378245307,-1010.0,0.00014588,2]
[401797652,1768378245317,-870.0,0.00014643,2]
[401797654,1768378245326,-431.0,0.00014643,2]
[401797656,1768378245335,-14150.53090947,0.00014695,2]
[401797658,1768378245345,-1665.51,0.000147,2]
[401797661,1768378245357,-500.0,0.00014724,2]
[401797663,1768378245366,-210.35,0.00014728,2]
[401797665,1768378245375,-976.67104,0.00014731,7]
[401797667,1768378245385,-60555.565719,0.00014732,7]
[401797669,1768378245394,-40370.377146,0.00014734,7]
[401797671,1768378245404,-2579.17784983,0.00014735,2]
[401797683,1768378245503,-533.88981491,0.00014735,2]
[401797686,1768378245524,-100000.0,0.00014736,2]
[401797688,1768378245534,-926.78602363,0.00014746,2]
[401797690,1768378245543,-2441.677602,0.00014757,7]
[401797692,1768378245553,-193.46078896,0.00014761,2]
[401797694,1768378245563,-900.0,0.00014768,2]
[401797696,1768378245572,-870.0,0.0001478,2]
[401797698,1768378245582,-431.0,0.0001478,2]
[401797700,1768378245590,-151388.914296,0.0001478,7]
[401797702,1768378245600,-200.0,0.00014794,2]
[401797704,1768378245609,-1500.0,0.00014795,2]
[401797706,1768378245619,-165.99620392,0.00014795,2]
[401797708,1768378245628,-1646.70021057,0.00014795,2]
[401797710,1768378245638,-622.97821503,0.00014795,2]
[401797712,1768378245648,-305.98884969,0.00014795,2]
[401797714,1768378245657,-200.84224431,0.00014795,2]
[401797716,1768378245667,-1503.42728186,0.00014795,2]
[401797718,1768378245676,-1000.0,0.00014795,2]
[401797720,1768378245685,-719.03928287,0.00014795,2]
[401797722,1768378245694,-1500.0,0.00014795,2]
[401797724,1768378245705,-1500.0,0.00014795,2]